Cogmind - Beta 16 @@@ ROGUE MODE // 2026.01.17 @ 03:40:23 Player: Legato Result: Destroyed by S-27 Virus with Autogun Performance ------------- Evolutions (6) 3000 Regions Visited (6) 1200 Robots Destroyed (55) 275 Value Destroyed (1981) 1981 Prototype IDs (9) 180 Alien Tech Used (0) 0 Bonus (-51) -51 TOTAL SCORE: 6585 Bonus ------- Friendly Fire -51 Cogmind --------- Core Integrity 0/1150 Matter 206/300 Energy 99/100 System Corruption 2% Temperature Cool (0) Movement Core (50) Location -4/Factory Parts ------- > --- POWER (2) -------- (None) > --- PROPULSION (5) --- (None) > --- UTILITY (8) ------ (None) > --- WEAPON (4) ------- (None) > --- INVENTORY (5) ---- High-capacity Storage Unit Structural Scanner Datajack Peak State ------------ > --- POWER ------------ Light Angular Momentum Engine F-cell Engine > --- PROPULSION ------- Improved Treads Improved Treads Improved Medium Treads Improved Medium Treads Improved Medium Treads > --- UTILITY ---------- Scrap Engine Core Analyzer Improved Heavy Armor Plating Reactive Plating Force Field > --- WEAPON ----------- Coil Gun Mini Assault Cannon Heavy Flak Cannon > --- INVENTORY -------- Wheel Advanced Heat Sink High-capacity Storage Unit Structural Scanner Datajack [Rating: 85] Favorites ----------- Power Light Angular Momentum Engine Engine Light Angular Momentum Engine Power Core Light Nuclear Core Reactor Light Antimatter Reactor Propulsion Wheel Treads Improved Medium Treads Leg Enhanced Armored Leg Wheel Wheel Flight Unit VTOL Module Utility Scrap Engine Device Scrap Engine Storage Medium Storage Unit Processor Core Analyzer Hackware Hacking Suite Protection Reactive Plating Weapon Heavy Assault Rifle Energy Gun Overtuned Pulse Rifle Ballistic Gun Heavy Assault Rifle Ballistic Cannon Heavy Flak Cannon Launcher Grenade Launcher Special Weapon Remote Datajack Build | -11 -10 -10 -8 -6 -5 -4 ------- Run | Yrd Mat Sub Rec Fac Fac Fac Slots Evolved 12 | . . . . 8 2 2 Power 1 | . . . . 1 . . Propulsion 3 | . . . . 2 1 . Utility 6 | . . . . 5 . 1 Weapon 2 | . . . . . 1 1 Parts Attached 81 | 8 6 6 14 18 14 15 Power 10 | 1 1 1 1 3 1 2 Engine 6 | 1 . 1 . 3 1 . Core 2 | . 1 . 1 . . . Reactor 2 | . . . . . . 2 Propulsion 27 | 3 . 2 5 6 6 5 Treads 7 | 1 . . 1 3 2 . Leg 10 | . . . 3 2 . 5 Wheel 7 | 2 . 2 1 1 1 . Hover . | . . . . . . . Flight 3 | . . . . . 3 . Utility 22 | 2 2 . 4 7 3 4 Device 10 | 1 . . 2 2 3 2 Storage 4 | 1 1 . 1 1 . . Processor 3 | . . . . 2 . 1 Hackware 1 | . . . . . . 1 Protection 4 | . 1 . 1 2 . . Artifact . | . . . . . . . Weapon 22 | 2 3 3 4 2 4 4 Energy Gun 5 | 1 . . 1 . 1 2 Energy Cannon . | . . . . . . . Ballistic Gun 11 | 1 3 2 2 1 1 1 Ballistic Cannon 3 | . . . . 1 2 . Launcher 2 | . . 1 1 . . . Special Weapon 1 | . . . . . . 1 Impact Weapon . | . . . . . . . Slashing Weapon . | . . . . . . . Piercing Weapon . | . . . . . . . Special Melee Weapon . | . . . . . . . Unidentified Prototypes 4 | . . . 1 1 1 1 Parts Lost 36 | . . 6 10 . 15 5 Power 8 | . . 1 2 . 3 2 Propulsion 13 | . . 2 2 . 8 1 Utility 4 | . . 1 1 . 2 . Weapon 11 | . . 2 5 . 2 2 Highest Loss Streak 10 | . . 3 10 . 10 4 To Critical Strikes . | . . . . . . . Average Backups 7 | 3 9 9 8 4 5 3 Power . | . 1 1 . . . . Propulsion 2 | 2 3 3 2 . 1 . Utility 1 | . . 1 1 2 3 2 Weapon 1 | . 2 2 3 . . . Tool/Special . | . . . . . . . Unused Backups 11 | 1 6 . 1 . 1 2 Power 1 | . 1 . . . . . Propulsion 4 | . 4 . . . . . Utility 2 | . . . . . 1 1 Weapon 3 | 1 1 . 1 . . . Tool/Special 1 | . . . . . . 1 Average Slot Usage (%) 80 | . 100 88 85 82 74 33 Engine 7 | . 7 3 9 11 8 . Core 2 | . 6 10 . . . . Treads 9 | . 14 6 3 11 20 . Leg 3 | . . . 3 6 . 16 Wheel 11 | . 14 19 19 7 3 . Device 8 | . 13 6 4 14 8 1 Storage 7 | . 14 14 10 2 1 . Processor 1 | . . . . 5 4 1 Protection 4 | . . . 5 7 8 . Energy Gun 2 | . . . 4 6 2 2 Ballistic Gun 14 | . 27 17 23 1 4 2 Ballistic Cannon 1 | . . . . 4 5 . Launcher 1 | . . 10 . . . . Peak Build Rating 85 | 7 12 12 29 75 85 77 Average Rating 33 | 5 10 10 14 66 70 37 On Entrance 18 | . 7 12 8 25 73 4 Avg Prop Armor Cover (%) 11 | 11 10 11 11 12 10 27 Naked Turns 54 | . . . . . 20 34 Heaviest Build 103 | 15 24 22 61 98 103 41 Greatest Support 136 | 20 10 30 38 90 136 100 Greatest Overweight (x) 15 | 1 2 2 15 9 5 . Average Overweight (x) 1 | . 1 1 1 3 1 . Largest Inventory Capacity 20 | 8 10 10 20 20 20 5 Average Capacity 9 | 7 9 10 14 6 8 5 Most Carried 12 | 6 10 10 12 8 7 5 Average Carried 7 | 3 9 9 8 5 5 3 Final Capacity 20 | 8 10 10 5 20 5 5 Final Carried 10 | 6 10 10 3 8 4 3 Scrap Engine Consumption 9 | . . . 5 4 . . Constructs Created 1 | . . . . 1 . . Class Distribution -------------------- 84% | Mutant 7% | Scavenger-Mutant 3% | Scavenger-Tank Dominant Class ---------------- Mutant | -10/Materials Mutant | -10/Subcaves Mutant | -8/Recycling Mutant | -6/Factory Mutant | -5/Factory Mutant | -4/Factory Resources | -11 -10 -10 -8 -6 -5 -4 ----------- Run | Yrd Mat Sub Rec Fac Fac Fac Matter Collected 2404 | 216 146 216 668 229 635 294 Remotely . | . . . . . . . Salvage Created 2084 | 11 236 95 300 227 864 351 Parts 105 | 6 19 7 13 16 34 10 Haulers Intercepted . | . . . . . . . Recyclers Shooed 5 | . . . . . 4 1 Parts Field Recycled . | . . . . . . . Retrieved Matter . | . . . . . . . Parts Self-Destructed 6 | . . 6 . . . . Prevented . | . . . . . . . Parts Restored . | . . . . . . . Kills | -11 -10 -10 -8 -6 -5 -4 ------- Run | Yrd Mat Sub Rec Fac Fac Fac Combat Hostiles Destroyed 44 | . 4 6 4 7 17 6 Guns 29 | . 4 1 4 2 12 6 Cannons 9 | . . . . 4 5 . AOE 6 | . . 5 . 1 . . Classes Destroyed 13 | 1 3 4 2 1 2 . Worker 2 | . 1 . . . 1 . Builder 2 | . . . . 1 1 . Tunneler 2 | 1 1 . . . . . Recycler 1 | . . . . . 1 . Turret 2 | . . 2 . . . . Watcher 2 | . 2 . . . . . Swarmer 16 | . . 4 . 4 6 2 Grunt 20 | . 4 . . 2 10 4 Brawler 1 | . . . . . 1 . Sentry 2 | . . . 1 1 . . Subdweller 2 | . . 2 . . . . Scientist 3 | . . 1 2 . . . Scrapper 3 | . . . 3 . . . Best Kill Streak 7 | 1 2 4 2 3 7 3 Combat Bots Only 7 | . 2 4 2 3 7 3 Max Kills in Single Turn 2 | 1 2 2 1 1 2 1 Gunslinging . | . . . . . . . Exploded 2 | . . 2 . 1 . . Melee . | . . . . . . . Uniques/NPCs Destroyed . | . . . . . . . Combat | -11 -10 -10 -8 -6 -5 -4 -------- Run | Yrd Mat Sub Rec Fac Fac Fac Hostile Shots Fired 626 | . 22 117 45 34 247 161 Missed 172 | . 8 46 6 12 53 47 Hits 454 | . 14 71 39 22 194 114 Melee 4 | . . . . . 4 . Projectile 450 | . 14 71 39 22 190 114 Critical Strikes 19 | . 1 . 3 . 10 5 Damage Taken 7492 | . 189 691 853 384 2993 2382 Core 1845 | . 24 100 115 12 440 1154 Absorbed by Shields 489 | . . . . . 481 8 Ignored by Resistances 77 | . . . 10 36 31 . Core Remaining (%) 64 | 100 . . 4 98 56 . Volleys Fired 182 | 4 21 35 33 16 52 21 Largest 3 | 1 2 2 2 2 3 3 Hottest 180 | 20 46 53 103 124 154 180 Shots Fired 324 | 4 42 58 44 23 112 41 Gun 237 | 4 42 43 43 12 54 39 Cannon 69 | . . . . 11 58 . Launcher 16 | . . 15 1 . . . Special 2 | . . . . . . 2 Kinetic 269 | 4 42 43 40 16 109 15 Thermal 37 | . . . 3 7 3 24 Explosive 16 | . . 15 1 . . . Electromagnetic . | . . . . . . . Robot Hit Streak 19 | 2 7 11 12 19 10 10 Robot Miss Streak 11 | 2 4 3 3 11 5 2 Penetration Max 2 | . . . . 1 2 . Secondary Targets 3 | . . . 1 . . 2 Max Gunslinging Chain 1 | . . . 1 . . 1 Shots Hit Robots 207 | 2 22 33 32 22 67 29 Core Hits 155 | 1 11 15 14 24 76 14 Critical Kills 3 | . . . . . 2 1 Critical Parts Destroyed 3 | . . . . . . 3 Critical Strikes 10 | . . 1 . 2 2 5 Burn 3 | . . . . 2 . 1 Destroy 7 | . . 1 . . 2 4 Melee Attacks . | . . . . . . . Impact . | . . . . . . . Slashing . | . . . . . . . Piercing . | . . . . . . . Sneak Attacks . | . . . . . . . Combat Hostiles . | . . . . . . . Follow-up Attacks . | . . . . . . . Damage Inflicted 4901 | 23 352 935 555 578 1806 652 Guns 3100 | 23 352 369 489 288 927 652 Cannons 1106 | . . . . 237 869 . Explosions 672 | . . 566 53 53 . . Melee . | . . . . . . . Ramming 23 | . . . 13 . 10 . Kinetic 3509 | 23 352 369 443 364 1776 182 Thermal 697 | . . . 46 161 20 470 Explosive 672 | . . 566 53 53 . . Electromagnetic . | . . . . . . . Impact . | . . . . . . . Slashing . | . . . . . . . Piercing . | . . . . . . . Highest Corruption 2 | . . . . 1 . 2 Average Corruption 1 | . . . . 1 . 1 Corruption Purged . | . . . . . . . Corruption Blocked . | . . . . . . . Effects 2 | . . . . 1 . 1 Heat Flow Errors 1 | . . . . . . 1 Energy Discharges 1 | . . . . 1 . . Overload Shots . | . . . . . . . Overflow Damage 23 | . . 1 . . 22 . Projectiles 22 | . . . . . 22 . Explosions 1 | . . 1 . . . . Melee . | . . . . . . . Knockbacks 33 | . . . . 10 23 . Impact . | . . . . . . . Kinetic 29 | . . . . 9 20 . Secondary 4 | . . . . 1 3 . Self-Inflicted Damage 254 | . . 66 56 128 4 . Shots 6 | . . 3 1 2 . . Rammed 8 | . . . 2 . 6 . Targets Rammed 8 | . . . 2 . 6 . Kicked . | . . . . . . . Crushed . | . . . . . . . Highest Temperature 449 | . 31 . 131 166 387 449 Average Temperature 113 | . 17 . 38 63 137 164 Received Heat Transfer 2284 | . 123 372 501 75 1038 175 Effects 12 | . . . . . 5 7 Shutdowns 1 | . . . . . . 1 Energy Bleed 2 | . . . . . . 2 Matter Decay 4 | . . . . . 4 . Short Circuit 1 | . . . . . . 1 Damage (minor) 1 | . . . . . 1 . Damage (major) 3 | . . . . . . 3 Siege Activations . | . . . . . . . Martial Activations . | . . . . . . . Shielding Activations . | . . . . . . . Robots Disrupted . | . . . . . . . Combat Hostiles . | . . . . . . . Robots Corrupted . | . . . . . . . Combat Hostiles . | . . . . . . . Parts Fried . | . . . . . . . Impact Corruptions . | . . . . . . . Robots Melted . | . . . . . . . Combat Hostiles . | . . . . . . . Parts Melted 3 | . . . 3 . . . Heat Transferred 1427 | . . . 100 550 37 740 Parts Sabotaged . | . . . . . . . Parts Stolen . | . . . . . . . Parts Stripped . | . . . . . . . Power Chain Reactions . | . . . . . . . Alert | -11 -10 -10 -8 -6 -5 -4 ------- Run | Yrd Mat Sub Rec Fac Fac Fac Maximum Alert Level 1 | . . . . . . 1 Low Security (%) 99 | 100 100 . 100 100 100 99 Level 1 . | . . . . . . . Level 2 . | . . . . . . . Level 3 . | . . . . . . . Level 4 . | . . . . . . . Level 5 . | . . . . . . . High Security . | . . . . . . . Max Security . | . . . . . . . Peak Influence 205 | 5 43 . 20 149 141 205 Initial 60 | . 3 . 3 50 60 55 Average 33 | . 10 . . 38 70 98 Influence Increases 1492 | 5 126 180 54 321 441 365 Destroy 0b10 Robot/C 820 | . 80 120 20 140 340 120 Destroy 0b10 Robot/NC 45 | 5 20 . . 5 15 . Destroy Leader 94 | . 24 . . 20 40 10 Successful Hack 60 | . . . 17 33 . 10 Disable Machine 75 | . . . 15 30 15 15 Destroy Structure 48 | . 2 . 2 28 16 . Advance Influence 50 | . . . . 50 . . Lose Combat Pursuer 300 | . . 60 . 15 15 210 Influence Decreases 1412 | . 105 199 61 196 453 398 Entered New Map 143 | . 2 14 4 . 65 58 Time Decay 869 | . 103 130 42 196 238 160 Search Patrol Dispatched 100 | . . . . . . 100 Lost Part 270 | . . 55 15 . 150 50 Purge Threat 30 | . . . . . . 30 Squads Dispatched 5 | . . . . . 2 3 Investigation 2 | . . . . . 1 1 Extermination 1 | . . . . . . 1 Reinforcement 2 | . . . . . 1 1 Assault . | . . . . . . . Garrison . | . . . . . . . Intercept . | . . . . . . . Searches Triggered 1 | . . . . . . 1 Construction Impeded 1 | . . . . . 1 . Haulers Reinforced . | . . . . . . . Active Scanning Responses . | . . . . . . . Cargo Convoy Interrupts . | . . . . . . . Stealth | -11 -10 -10 -8 -6 -5 -4 --------- Run | Yrd Mat Sub Rec Fac Fac Fac Distress Signals 4 | . 1 . . 1 . 2 Communications Jammed . | . . . . . . . Distress Signals . | . . . . . . . Times Spotted 96 | . 8 12 4 12 23 37 Peak Tracking Total 12 | . 3 6 5 5 7 12 Tactical Retreats 12 | . . 3 . 1 1 7 Traps | -11 -10 -10 -8 -6 -5 -4 ------- Run | Yrd Mat Sub Rec Fac Fac Fac Traps Triggered 2 | . . . . 1 1 . Indirectly . | . . . . . . . Trap Hack Attempts . | . . . . . . . Triggered . | . . . . . . . Disarmed . | . . . . . . . Reprogrammed . | . . . . . . . Reused . | . . . . . . . Traps Extracted . | . . . . . . . Installed . | . . . . . . . Triggered . | . . . . . . . Machines | -11 -10 -10 -8 -6 -5 -4 ---------- Run | Yrd Mat Sub Rec Fac Fac Fac Machines Disabled 8 | . . 2 2 2 1 1 Max in Single Turn 2 | . . 2 1 2 1 1 Garrison Access 1 | . . . . 1 . . Machines Repaired . | . . . . . . . Machines Dismantled . | . . . . . . . Machines Sabotaged . | . . . . . . . Overloaded Fab Kills . | . . . . . . . Hacking | -11 -10 -10 -8 -6 -5 -4 --------- Run | Yrd Mat Sub Rec Fac Fac Fac Machines Accessed 20 | . 2 . 8 4 1 5 Terminals 10 | . 1 . 5 1 . 3 Fabricators 2 | . . . . . . 2 Repair Stations 1 | . 1 . . . . . Recycling Units 4 | . . . 2 1 1 . Scanalyzers 1 | . . . . 1 . . Garrison Access 1 | . . . . 1 . . Total Hacks 54 | . 5 . 28 8 3 10 Successful 29 | . 2 . 16 5 1 5 Failed 25 | . 3 . 12 3 2 5 Catastrophic 5 | . . . 2 1 . 2 Database Lockouts . | . . . . . . . Manual 7 | . 4 . 1 1 . 1 Terminals 28 | . 4 . 17 2 . 5 Fabricators 5 | . . . . . . 5 Repair Stations 1 | . 1 . . . . . Recycling Units 8 | . . . 4 1 3 . Scanalyzers 3 | . . . . 3 . . Garrison Access 2 | . . . . 2 . . Terminal Hacks 18 | . . . 13 2 . 3 Record 5 | . . . 5 . . . Prototype ID Bank 2 | . . . 2 . . . Level Access Points 2 | . . . 1 1 . . Alert Level 1 | . . . 1 . . . Unreport Threat 1 | . . . . . . 1 Locate Traps 1 | . . . . 1 . . Recall Investigation 1 | . . . . . . 1 Registered Components 1 | . . . 1 . . . Zone Layout 2 | . . . 1 . . 1 Release Object 2 | . . . 2 . . . Fabricator Hacks 2 | . . . . . . 2 Network Status 1 | . . . . . . 1 Build 1 | . . . . . . 1 Repair Station Hacks 1 | . 1 . . . . . Scan Component 1 | . 1 . . . . . Recycling Unit Hacks 4 | . . . 3 . 1 . Report Inventory 1 | . . . . . 1 . Retrieve Matter 1 | . . . 1 . . . Retrieve Components 2 | . . . 2 . . . Scanalyzer 2 | . . . . 2 . . Retrieve Study 2 | . . . . 2 . . Garrison Access Hacks 1 | . . . . 1 . . Seal Access 1 | . . . . 1 . . Unauthorized Hacks 1 | . 1 . . . . . Terminals 1 | . 1 . . . . . Botnet 1 | . 1 . . . . . Fabricators . | . . . . . . . Repair Stations . | . . . . . . . Recycling Units . | . . . . . . . Scanalyzers . | . . . . . . . Garrison Access . | . . . . . . . Data Cores Recovered . | . . . . . . . Used . | . . . . . . . Hacking Detections 15 | . 1 . 6 4 1 3 Full Trace Events 3 | . . . 1 . 1 1 Feedback Events 1 | . . . . . . 1 Corruption 1 | . . . . . . 1 Feedback Blocked . | . . . . . . . Robot Schematics Acquired . | . . . . . . . Robots Built . | . . . . . . . Authchips . | . . . . . . . Time . | . . . . . . . Total Robot Build Rating . | . . . . . . . Part Schematics Acquired . | . . . . . . . Parts Built 1 | . . . . . . 1 Authchips . | . . . . . . . Time 139 | . . . . . . 139 Total Part Build Rating 9 | . . . . . . 9 Part Studies Acquired 2 | . . . . 2 . . Parts Repaired . | . . . . . . . Time . | . . . . . . . Parts Recycled . | . . . . . . . Recycled Matter . | . . . . . . . Retrieved Matter . | . . . . . . . Retrieved Components 1 | . . . 1 . . . Parts Scanalyzed . | . . . . . . . Part Schematics Acquired . | . . . . . . . Parts Damaged . | . . . . . . . Bothacking | -11 -10 -10 -8 -6 -5 -4 ------------ Run | Yrd Mat Sub Rec Fac Fac Fac Used RIF Installer . | . . . . . . . Robots Hacked 1 | . . . . . . 1 Non-combat 1 | . . . . . . 1 Combat . | . . . . . . . Robot Hacks Applied 1 | . . . . . . 1 parse_system 1 | . . . . . . 1 Relay Couplers Released . | . . . . . . . Fabnet Peak Effective % . | . . . . . . . Robots Rewired . | . . . . . . . Allies Hacked . | . . . . . . . Hacks Repelled . | . . . . . . . Allies | -11 -10 -10 -8 -6 -5 -4 -------- Run | Yrd Mat Sub Rec Fac Fac Fac Total Allies . | . . . . . . . Largest Group . | . . . . . . . Highest-Rated Group . | . . . . . . . Highest-Rated Ally . | . . . . . . . Total Orders . | . . . . . . . Ally Attacks . | . . . . . . . Total Damage . | . . . . . . . Kills . | . . . . . . . Allies Corrupted . | . . . . . . . Allies Melted . | . . . . . . . Intel | -11 -10 -10 -8 -6 -5 -4 ------- Run | Yrd Mat Sub Rec Fac Fac Fac Active Infowar (turns) 646 | 8 475 163 . . . . Seismic 646 | 8 475 163 . . . . Robot Analysis Total . | . . . . . . . Derelict Logs Recovered . | . . . . . . . Drone Launches . | . . . . . . . Drone Recoveries . | . . . . . . . Exploration | -11 -10 -10 -8 -6 -5 -4 ------------- Run | Yrd Mat Sub Rec Fac Fac Fac Turns Passed 3217 | 78 508 403 838 565 504 321 Spaces Moved 2268 | 57 351 289 647 342 217 365 Core 103 | 1 . . 3 . 30 69 Treads 115 | . . . 2 3 110 . Legs 220 | . . . 62 49 . 109 Wheels 1627 | 56 351 289 580 290 61 . Hover . | . . . . . . . Flight 203 | . . . . . 16 187 Fastest Speed 32 | 50 95 95 80 80 32 32 Average Speed 108 | 88 104 104 111 144 135 62 Slowest Speed 800 | 95 110 110 800 330 160 120 Overloaded Moves . | . . . . . . . Propulsion Burnouts . | . . . . . . . Robots Hopped 3 | . . . . . 1 2 Potential Cave-ins . | . . . . . . . Cave-ins Triggered . | . . . . . . . Exploration Rate (%) 28 | 5 47 16 99 10 8 16 Regions Visited 6 Branch Regions 2 Pre-discovered Areas . | . . . . . . . Known Exits Taken 2 | . . . 1 1 . . Unknown Exits Taken 4 | 1 1 1 . . 1 . Scrap Searched 1 | . . 1 . . . . Spaces Dug 26 | . . 22 . . 4 . Terrain Destroyed 125 | . . 82 1 31 11 . Melee . | . . . . . . . Projectile 12 | . . . 1 . 11 . AOE 113 | . . 82 . 31 . . Terrain Rammed . | . . . . . . . Walls Destroyed . | . . . . . . . Machines Disabled . | . . . . . . . Actions | -11 -10 -10 -8 -6 -5 -4 --------- Run | Yrd Mat Sub Rec Fac Fac Fac Total 2706 | 76 455 331 719 385 322 418 Wait 95 | . 56 . 1 . 27 11 Move 2256 | 56 350 288 646 341 214 361 Hop 3 | . . . . . 1 2 Pick Up 27 | 7 11 2 3 3 1 . Fast Attach 51 | 7 . 1 9 11 8 15 Attach 19 | . . 3 10 . 4 2 Detach 4 | . . . 2 . . 2 Swap 30 | 1 7 2 3 11 6 . Drop 29 | 1 10 . 8 3 3 4 Fire 182 | 4 21 35 33 16 52 21 Melee . | . . . . . . . Ram 8 | . . . 2 . 6 . Kick . | . . . . . . . Crush . | . . . . . . . Escape Stasis . | . . . . . . . Rewire 2 | . . . 2 . . . Trap . | . . . . . . . Miscellaneous . | . . . . . . . Route ------- -11/Scrapyard -10/Materials (discovered 3 exits: [*Mat] / [*Min] / [*Sub]) -10/Subcaves -8/Recycling -6/Factory (discovered 4 exits: *Fac x4) -5/Factory -4/Factory History --------- Turn | Location | Event 23 | -11/Scrapyard | Discovered new exit (range 15) 79 | -11/Scrapyard | Entered Materials 271 | -10/Materials | Discovered new exit (range 16) 302 | -10/Materials | Discovered new exit (range 12) 303 | -10/Materials | Build established: Mutant 437 | -10/Materials | Discovered new exit (range 8) 587 | -10/Materials | Entered Subcaves 588 | -10/Subcaves | Approached by a straggling Scientist 868 | -10/Subcaves | Ambushed by Subdweller buried in earth 910 | -10/Subcaves | Discovered new exit (range 12) 914 | -10/Subcaves | Lost 3 parts (1p2w) 990 | -10/Subcaves | Entered Recycling 1000 | -8/Recycling | Identified exit to Factory 1497 | -8/Recycling | Scanned before Scraplab entrance 1516 | -8/Recycling | Entered Scraplab 1521 | -8/Recycling | Angered Scraplab inhabitants 1537 | -8/Recycling | Core integrity fell below 50% 1566 | -8/Recycling | Core integrity fell below 20% 1593 | -8/Recycling | Lost 10 parts (2p2n1u5w) 1631 | -8/Recycling | Found Prototype Device 1631 | -8/Recycling | Identified Scrap Engine 1828 | -8/Recycling | Entered Factory 1828 | -6/Factory | Evolved 8 slots: Power x1, Propulsion x2, Utility x5 2193 | -6/Factory | Discovered new exit (range 7) 2226 | -6/Factory | Identified exit to Factory 2393 | -6/Factory | Entered another Factory area 2393 | -5/Factory | Evolved 2 slots: Propulsion x1, Weapon x1 2564 | -5/Factory | Lost 3 parts (1p1n1w) 2578 | -5/Factory | Destroyed 7 combat bots 2845 | -5/Factory | Released all parts (7) 2872 | -5/Factory | Lost 10 parts (2p6n2u) 2891 | -5/Factory | Discovered new exit (range 13) 2897 | -5/Factory | Entered another Factory area 2897 | -4/Factory | Evolved 2 slots: Utility x1, Weapon x1 2935 | -4/Factory | Spotted B-86 Titan 3060 | -4/Factory | Fabricated Centrium Leg? 3147 | -4/Factory | Search patrols dispatched 3184 | -4/Factory | Released all parts (9) 3198 | -4/Factory | Core integrity fell below 50% 3205 | -4/Factory | Core integrity fell below 20% 3213 | -4/Factory | Lost 4 parts (2p2w) 3218 | -4/Factory | Destroyed by S-27 Virus with Autogun Last Messages --------------- 03184_ Released Broken Hvy. Laser. 03191_ Penetrated by Slug. 03191_ Knocked back. 03192_ Connecting with Terminal... >>Layout(Zone) Retrieving Zone 8E layout... Downloaded map data. 03192_ Connecting with Terminal... 03193_ ALERT: Hostiles spotted, dispatching reinforcements to Terminal F010. 03195_ Slug penetrates Wall. 03197_ Knocked back. 03197_ U-05 Engineer builds a Wall. 03199_ Knocked back. 03199_ U-05 Engineer builds a Wall. 03200_ System corrupted: Heat flow error (+174). 03201_ Penetrated by Slug. 03201_ Knocked back. 03203_ Penetrated by Slug. 03205_ Knocked back. Map ----- +----------------------------------------------------+ | ?????????????????????""" # ! | | ?????????????????????????+ | | ?????????????????????????# ? | | ?????????????????????????# ##+#####?? | | ?????????????????????????######## #????????? | | ????????????????????????????????#" % ##????????? | | ????????????????????????????????## #?????????? | | ?????????????????????????????????# #?????????? | | ?????????????????????????????????# #?????????? | | ?????????????????????????????????# #?????????? | | ?????????????????????????????????# % #?????????? | | ?????????????????????????????????# #?????????? | | ??????????????????????####???????# #?????????? | | ?????????##############T ######### #?????????? | | ???????? % #?????????? | | ???????? #?????????? | | ??????? +?????????? | | ??????? ^#?????????? | | ??????? #?????????? | | ????????????###########s########### ##?????????? | | ???????????????????# s #?????# #??????????? | | ???????????????????# #?????# #??????????? | | ???????????????????#"""" #?????+ #??????????? | | ???????????????????#"""" #?????# #??????????? | | ???????????????????#"""" #?????## ##??????????? | | ???????????????????#"""" @ #??????? #???????????? | | ???????????????????# #??????? #???????????? | | ???????????????????# * #??????? #???????????? | | ???????????????????# ! #??????? #???????????? | | ???????????????????##########??????? #???????????? | | ?????????????????????????????????????????????????? | | ?????????????????????????????????????????????????? | | ?????????????????????????????????????????????????? | | ?????????????????????????????????????????????????? | | ?????????????????????????????????????????????????? | | ?????????????????????????????????????????????????? | | ?????????????????????????????????????????????????? | | ?????????????????????????????????????????????????? | | ?????????????????????????????????????????????????? | | ?????????????????????????????????????????????????? | | ?????????????????????????????????????????????????? | | ?????????????????????????????????????????????????? | | ?????????????????????????????????????????????????? | | ?????????????????????????????????????????????????? | | ?????????????????????????????????????????????????? | | ?????????????????????????????????????????????????? | | ?????????????????????????????????????????????????? | | ?????????????????????????????????????????????????? | | ?????????????????????????????????????????????????? | | ?????????????????????????????????????????????????? | +----------------------------------------------------+ Best States ------------- Heat Dissipation 59 Energy Generation 41 Energy Capacity 900 Matter Stores 300 Matter Capacity 300 Sight Range 16 Terrain Scan Density 10 Armor Coverage 750 Resistance: KI 20 Evasion (%) 63 Core Analysis 9 Recoil Reduction 5 Offensive Hacking 10 Item Schematics ----------------- None Robot Schematics ------------------ None Fabricated ------------ Centrium Leg | x1 | -4/Factory | Preloaded Repaired ---------- Nothing Studied --------- Hvy. Flak Cannon | -6/Factory | Hacked Coil Gun | -6/Factory | Hacked Alien Tech Used ----------------- None Achievements -------------- Scrappetite Challenges ------------ None Game ------ Seed AntisysWardroneMace Manual? 0 Play Time 00:41:15 Cumulative 63.4 hours Start 2026.01.17 @ 03:03:13 End 2026.01.17 @ 03:40:23 Sessions 1 Manual Loads 0 Difficulty Rogue Special Mode None Game No. 69 Rogue 69 Adventurer 0 Explorer 0 Win Type - Total 1 Types 1/0/0/0/0/0/0/0/0/0 Lore% 46 Gallery% 45 Achievement% 33 Wizard Run 0 Options --------- Layout 0 ASCII 0 Keyboard 0 Movement Arrows Keybinds 1 Fullscreen 1 Font 18/X11 Map View 76x50 Zoom Use 0% Tactical HUD 1 Map Filters NONE Filters NONE Steam 1 RUN: 70a84cb9-71e8-4b3d-bc13-dc539bf0b332